bitfinex-derivatives/quotes_BTCF0:USTF0_20241003
["timestamp","ask_amount","ask_price","bid_price","bid_amount"]
[1727970437503,0.082737,60441.0,60440.0,0.082738]
[1727970437692,0.01829161,60445.0,60436.0,0.29]
[1727970437888,0.082741,60439.0,60437.0,0.082743]
[1727970438197,0.082741,60439.0,60438.0,0.082741]
[1727970438404,0.082736,60442.0,60440.0,0.082738]
[1727970438599,0.37911035,60446.0,60441.0,0.29]
[1727970438906,0.082732,60445.0,60438.0,0.082741]
[1727970439104,0.082741,60438.0,60437.0,0.003]
[1727970439603,0.082741,60438.0,60437.0,0.293]
[1727970440101,0.08274,60440.0,60439.0,0.082739]
[1727970440697,0.082739,60440.0,60439.0,0.08274]
[1727970440899,0.082734,60444.0,60443.0,0.082734]
[1727970441100,0.37911035,60446.0,60442.0,0.29]
[1727970441304,0.082734,60443.0,60442.0,0.29]
[1727970441802,0.082734,60443.0,60442.0,0.372736]
[1727970442499,0.38011035,60446.0,60436.0,0.29]
[1727970442804,0.082745,60436.0,60435.0,0.082745]
[1727970443000,0.38011035,60446.0,60427.0,0.29]
[1727970443001,0.37911035,60446.0,60427.0,0.29]
[1727970443205,0.0316,60435.0,60424.0,0.0512583]
[1727970443396,0.0316,60435.0,60426.0,0.29]
[1727970443899,0.0316,60435.0,60423.0,0.3608]
[1727970443900,0.001,60443.0,60440.0,0.082738]
[1727970444098,0.001,60443.0,60442.0,0.29]
[1727970444298,0.001,60443.0,60442.0,0.372736]
[1727970444900,0.3608,60446.0,60442.0,0.29]
[1727970445096,0.44353,60446.0,60442.0,0.372735]
[1727970445298,0.44353,60446.0,60443.0,0.082734]
[1727970445802,0.44353,60446.0,60435.0,0.006]
[1727970445803,0.082741,60438.0,60435.0,0.006]
[1727970446103,0.001,60443.0,60428.0,0.29]
[1727970446311,0.082737,60442.0,60431.0,0.082751]
[1727970446619,0.082747,60434.0,60431.0,0.082751]
[1727970446797,0.001,60443.0,60427.0,0.29]
[1727970446994,0.082749,60433.0,60427.0,0.29]
[1727970447301,0.082749,60433.0,60424.0,0.0323]
[1727970447302,0.6508,60431.0,60424.0,0.082759]
[1727970447701,0.082759,60425.0,60424.0,0.082759]
[1727970448102,0.3608,60431.0,60417.0,0.29]
[1727970448302,0.3608,60431.0,60427.0,0.29]
[1727970448497,0.3608,60431.0,60427.0,0.082756]
[1727970448697,0.082755,60428.0,60427.0,0.082756]
[1727970448896,0.3608,60431.0,60430.0,0.082752]
[1727970449803,0.082736,60442.0,60441.0,0.082736]
[1727970450400,0.443531,60446.0,60441.0,0.082737]
[1727970450602,0.443531,60446.0,60436.0,0.29]
[1727970450603,0.46252401,60446.0,60436.0,0.29]
[1727970450804,0.082732,60445.0,60444.0,0.082733]
[1727970451398,0.082736,60443.0,60442.0,0.082736]
[1727970452639,0.007,60445.0,60436.0,0.29]
[1727970452816,0.002,60445.0,60444.0,0.082733]
[1727970453110,0.002,60445.0,60441.0,0.29]
[1727970453111,0.00248237,60450.0,60449.0,0.082726]
[1727970454811,0.00248237,60450.0,60449.0,0.443526]
[1727970455004,0.082704,60466.0,60464.0,0.082705]
[1727970455313,0.082704,60466.0,60465.0,0.082704]
[1727970455512,0.019173,60468.0,60467.0,0.082702]
[1727970455710,0.14825491,60477.0,60467.0,0.29]
[1727970455711,0.082691,60475.0,60467.0,0.29]
[1727970456014,0.03195004,60474.0,60467.0,0.29]
[1727970456208,0.082687,60478.0,60467.0,0.29]
[1727970456409,0.0326,60480.0,60473.0,0.29]
[1727970456410,0.03194931,60477.0,60473.0,0.29]
[1727970456713,0.03194931,60476.0,60475.0,0.082691]
[1727970456910,0.00248154,60479.0,60478.0,0.082687]
[1727970457308,0.3608,60484.0,60483.0,0.08268]
[1727970457614,0.3608,60484.0,60483.0,0.37268]
[1727970458113,0.3608,60492.0,60483.0,0.29]
[1727970458413,0.443457,60500.0,60494.0,0.082665]
[1727970458619,0.46201334,60500.0,60495.0,0.29]
[1727970458805,0.37935634,60500.0,60495.0,0.29]
[1727970459005,0.37935634,60500.0,60494.0,0.082665]
[1727970459511,0.37935634,60500.0,60491.0,0.29]
[1727970459512,0.46201334,60500.0,60491.0,0.29]
[1727970459706,0.46601334,60500.0,60495.0,0.001]
[1727970459904,0.38335634,60500.0,60495.0,0.001]
[1727970460713,0.38335634,60500.0,60499.0,0.372658]
[1727970460714,0.004,60500.0,60499.0,0.372658]
[1727970460905,0.3608,60506.0,60504.0,0.08265]
[1727970461106,0.3608,60506.0,60499.0,0.372657]
[1727970461303,0.3608,60506.0,60500.0,0.082656]
[1727970461810,0.3608,60506.0,60502.0,0.082654]
[1727970462007,0.3608,60506.0,60504.0,0.29]
[1727970462408,0.3648,60506.0,60504.0,0.29]
[1727970462713,0.3668,60506.0,60505.0,0.08265]
[1727970463104,0.3628,60506.0,60505.0,0.08265]
[1727970463308,0.3668,60506.0,60505.0,0.08265]
[1727970464008,0.3668,60506.0,60504.0,0.291]
[1727970464413,0.3668,60506.0,60504.0,0.292]
[1727970464910,0.3628,60506.0,60505.0,0.002]
[1727970465216,0.445448,60506.0,60505.0,0.002]
[1727970465513,0.445448,60506.0,60505.0,0.292]
[1727970465715,0.3628,60506.0,60505.0,0.29]
[1727970466213,0.3628,60506.0,60504.0,0.002]
[1727970466517,0.08265,60505.0,60504.0,0.001]
[1727970467707,0.3608,60506.0,60501.0,0.29]
[1727970467918,0.082652,60504.0,60501.0,0.29]
[1727970468108,0.082654,60503.0,60498.0,0.01826588]
[1727970468308,0.082658,60499.0,60496.0,0.372661]
[1727970468918,0.082654,60503.0,60500.0,0.082656]
[1727970469104,0.3608,60506.0,60501.0,0.002]
[1727970469309,0.082654,60502.0,60501.0,0.002]
[1727970469708,0.082654,60502.0,60497.0,0.29]
[1727970469909,0.082659,60498.0,60497.0,0.29]
[1727970470406,0.082661,60497.0,60496.0,0.007]
[1727970470810,0.578541,60497.0,60496.0,0.007]
[1727970471007,0.082661,60497.0,60496.0,0.007]
[1727970471408,0.082657,60500.0,60493.0,0.29]
[1727970471613,0.082657,60500.0,60499.0,0.29]
[1727970471806,0.082659,60498.0,60497.0,0.08266]
[1727970472016,0.082659,60498.0,60495.0,0.29]
[1727970472017,0.082661,60497.0,60496.0,0.003]
[1727970472217,0.082661,60497.0,60496.0,0.004]
[1727970472528,0.082661,60497.0,60496.0,0.001]
[1727970473616,0.082663,60495.0,60494.0,0.29]
[1727970474119,0.082663,60495.0,60494.0,0.372665]
[1727970474313,0.0326,60501.0,60496.0,0.003]
[1727970474514,0.01899213,60502.0,60499.0,0.29]
[1727970474713,0.3608,60506.0,60499.0,0.29]
[1727970474908,0.082655,60502.0,60501.0,0.082655]
[1727970475112,0.082656,60501.0,60499.0,0.29]
[1727970475510,0.082657,60500.0,60499.0,0.29]
[1727970475717,0.082661,60497.0,60496.0,0.003]
[1727970476215,0.082661,60497.0,60480.0,0.082683]
[1727970476216,0.082669,60492.0,60485.0,0.29]
[1727970476522,0.082669,60492.0,60490.0,0.372669]
[1727970476913,0.082669,60492.0,60491.0,0.082669]
[1727970477525,0.082664,60495.0,60492.0,0.082667]
[1727970477720,0.082666,60493.0,60492.0,0.082667]
[1727970478016,0.082669,60491.0,60490.0,0.29]
[1727970478426,0.082669,60491.0,60490.0,0.37767]
[1727970479117,0.082669,60491.0,60490.0,0.38167]
[1727970479417,0.082669,60491.0,60490.0,0.38767]
[1727970479620,0.082669,60491.0,60490.0,0.015]
[1727970480112,0.082657,60500.0,60490.0,0.305]
[1727970480313,0.082662,60497.0,60496.0,0.082662]
[1727970480910,0.3608,60506.0,60500.0,0.082656]
[1727970480911,1.8608,60506.0,60500.0,0.082656]
[1727970481110,1.87977412,60506.0,60500.0,0.082656]
[1727970481319,1.87977412,60506.0,60499.0,0.29]
[1727970481617,1.87977412,60506.0,60494.0,0.29]
[1727970481618,0.08266,60499.0,60494.0,0.29]
[1727970481807,0.08266,60499.0,60490.0,0.017]
[1727970481808,0.082658,60499.0,60490.0,0.307]
[1727970482014,0.082663,60496.0,60494.0,0.29]
[1727970482210,0.082663,60496.0,60495.0,0.082663]
[1727970482411,0.38177412,60506.0,60500.0,0.001]
[1727970482645,0.38177412,60506.0,60505.0,0.29]
[1727970482646,0.46442312,60506.0,60505.0,0.29]
[1727970482821,0.38177412,60506.0,60501.0,0.29]
[1727970483011,0.3608,60506.0,60505.0,0.37265]
[1727970484621,0.3628,60506.0,60505.0,0.08265]
[1727970485016,0.3608,60506.0,60505.0,0.37265]
[1727970485224,0.445448,60506.0,60505.0,0.37265]
[1727970485722,0.445448,60506.0,60505.0,0.08265]
[1727970486025,0.08265,60505.0,60501.0,0.082654]
[1727970486228,0.082652,60504.0,60502.0,0.082654]
[1727970486419,0.082652,60503.0,60496.0,0.29]
[1727970486927,0.082652,60503.0,60502.0,0.082654]
[1727970487516,0.3628,60506.0,60505.0,0.08265]
[1727970487726,0.3628,60506.0,60500.0,0.29]
[1727970487934,0.082653,60503.0,60502.0,0.082654]
[1727970488126,0.082654,60502.0,60501.0,0.002]
[1727970488521,0.082656,60501.0,60499.0,0.082657]
[1727970488814,0.082656,60501.0,60487.0,0.10180736]
[1727970488815,0.3608,60506.0,60503.0,0.082652]
[1727970489023,0.082651,60504.0,60503.0,0.082652]
[1727970489227,0.03193444,60504.0,60503.0,0.082652]
[1727970490032,0.11458544,60504.0,60503.0,0.082652]
[1727970490423,0.082655,60501.0,60500.0,0.082656]
[1727970491019,0.08265,60505.0,60503.0,0.082651]
[1727970491219,0.11458615,60504.0,60503.0,0.082652]
[1727970491431,0.3608,60506.0,60505.0,0.08265]
[1727970492128,0.0851187,60513.0,60503.0,0.29]
[1727970492424,0.03192876,60512.0,60511.0,0.082642]
[1727970492617,0.36164,60519.0,60512.0,0.08264]
[1727970492819,0.3608,60519.0,60518.0,0.372632]
[1727970493020,0.39272704,60519.0,60518.0,0.372632]
[1727970493424,0.3608,60519.0,60518.0,0.372632]
[1727970493626,0.3608,60519.0,60514.0,0.29]
[1727970493818,0.3608,60519.0,60513.0,0.082638]
[1727970494023,0.3608,60519.0,60518.0,0.29]
[1727970494330,0.3608,60519.0,60518.0,0.372632]
[1727970494331,0.39272615,60519.0,60518.0,0.372632]
[1727970494626,0.3608,60519.0,60518.0,0.372632]
[1727970494829,0.3608,60519.0,60514.0,0.372637]
[1727970495021,0.3608,60519.0,60518.0,0.29]
[1727970495226,0.082624,60525.0,60523.0,0.082624]
[1727970495227,0.01882322,60525.0,60523.0,0.082624]
[1727970495427,0.3608,60531.0,60518.0,0.291]
[1727970495428,0.082617,60529.0,60527.0,0.082619]
[1727970495627,0.082617,60529.0,60524.0,0.29]
[1727970495628,0.082622,60526.0,60522.0,0.082625]
[1727970495834,0.082624,60524.0,60522.0,0.082625]
[1727970496325,0.082627,60522.0,60518.0,0.372631]
[1727970496831,0.082629,60520.0,60519.0,0.08263]
[1727970497125,0.002,60526.0,60525.0,0.082622]
[1727970497325,0.002,60526.0,60525.0,0.372622]
[1727970497645,0.002,60526.0,60525.0,0.733422]
[1727970498319,0.002,60526.0,60525.0,0.734422]
[1727970498834,0.082607,60537.0,60529.0,0.082617]
[1727970499021,0.3221,60543.0,60525.0,0.6532]
[1727970499220,0.03191616,60542.0,60535.0,0.29]
[1727970499422,0.05039708,60543.0,60535.0,0.29]
[1727970499618,0.05039708,60543.0,60537.0,0.082606]
[1727970500124,0.05239708,60543.0,60541.0,0.29]
[1727970500319,0.05239708,60543.0,60536.0,0.29]
[1727970500727,0.05239708,60543.0,60537.0,0.001]
[1727970501320,0.082605,60538.0,60537.0,0.001]
[1727970501520,0.082605,60538.0,60532.0,0.082613]
[1727970501521,0.54795708,60543.0,60536.0,0.001]
[1727970501718,0.05239708,60543.0,60536.0,0.001]
[1727970501917,0.082606,60537.0,60536.0,0.001]
[1727970502325,0.05039708,60543.0,60532.0,0.29]
[1727970502326,0.082599,60542.0,60532.0,0.29]
[1727970502537,0.082599,60542.0,60537.0,0.082606]
[1727970502827,0.05239708,60543.0,60536.0,0.291]
[1727970502828,0.13499508,60543.0,60536.0,0.291]
[1727970503028,0.0826,60542.0,60536.0,0.373607]
[1727970503225,0.29,60542.0,60536.0,0.001]
[1727970503423,0.29,60542.0,60528.0,0.00247822]
[1727970503424,0.292,60542.0,60532.0,0.001]
[1727970503623,0.002,60542.0,60536.0,0.082607]
[1727970503834,0.002,60542.0,60538.0,0.082604]
[1727970504130,0.002,60542.0,60541.0,0.372601]
[1727970505153,0.01829708,60543.0,60542.0,0.082599]
[1727970505154,0.003,60543.0,60542.0,0.082599]
[1727970505329,0.3608,60554.0,60542.0,0.0304]
[1727970505529,0.0318,60562.0,60553.0,0.372584]
[1727970505734,0.443367,60566.0,60561.0,0.29]
[1727970506133,0.46164842,60566.0,60561.0,0.29]
[1727970506335,0.37908142,60566.0,60561.0,0.29]
[1727970506543,0.01828142,60566.0,60562.0,0.082572]
[1727970506739,0.082562,60570.0,60562.0,0.082572]
[1727970507039,0.003,60566.0,60562.0,0.082571]
[1727970507243,0.003,60566.0,60561.0,0.001]
[1727970507647,0.003,60566.0,60565.0,0.29]
[1727970507943,0.003,60566.0,60565.0,0.372568]
[1727970509043,0.01830762,60575.0,60565.0,0.372568]
[1727970509044,0.082556,60574.0,60565.0,0.372568]
[1727970509242,0.082556,60574.0,60570.0,0.29]
[1727970509432,0.3608,60578.0,60570.0,0.29]
[1727970509744,0.082561,60570.0,60565.0,0.291]
[1727970509943,0.082564,60568.0,60565.0,0.291]
[1727970510148,0.082554,60576.0,60562.0,0.001]
[1727970510352,0.29,60577.0,60565.0,0.001]
[1727970510353,0.082566,60566.0,60565.0,0.001]
[1727970510845,0.682552,60577.0,60549.0,0.6508]
[1727970510846,0.082572,60562.0,60559.0,0.29]
[1727970511046,0.0314,60567.0,60565.0,0.001]
[1727970511344,0.082566,60566.0,60565.0,0.001]
[1727970511750,0.577886,60566.0,60565.0,0.002]
[1727970511935,1.177886,60566.0,60565.0,0.002]
[1727970512251,1.177886,60566.0,60551.0,0.29]
[1727970512252,1.81692,60566.0,60542.0,0.3207]
[1727970512546,1.81692,60566.0,60538.0,0.082605]
[1727970512547,0.29,60554.0,60538.0,0.082605]
[1727970512750,0.082597,60544.0,60538.0,0.29]
[1727970513047,0.082598,60543.0,60538.0,0.29]
[1727970513250,0.082598,60543.0,60538.0,0.372605]
[1727970513448,0.3608,60545.0,60538.0,0.29]
[1727970513644,0.082601,60541.0,60535.0,0.01865808]
[1727970513947,0.08261,60534.0,60530.0,0.00247783]
[1727970514452,0.3608,60536.0,60530.0,0.00247783]
[1727970514453,0.082614,60531.0,60530.0,0.00247783]
[1727970515945,0.10125776,60531.0,60530.0,0.00547783]
[1727970516349,0.10125776,60531.0,60530.0,0.00747783]
[1727970516641,0.10125776,60531.0,60530.0,0.00447783]
[1727970517051,0.10125776,60531.0,60530.0,0.00247783]
[1727970517261,0.10125776,60531.0,60530.0,0.00447783]
[1727970517552,0.46205776,60531.0,60530.0,0.00447783]
[1727970517741,0.082614,60531.0,60530.0,0.29447783]
[1727970517946,0.082614,60531.0,60530.0,0.29347783]
[1727970518142,0.3608,60543.0,60530.0,0.29647783]
[1727970518352,0.3608,60543.0,60535.0,0.29]
[1727970518353,0.082604,60539.0,60535.0,0.29]
[1727970518544,0.4624067,60543.0,60537.0,0.082606]
[1727970518745,0.3798087,60543.0,60542.0,0.29]
[1727970519849,0.3798087,60543.0,60537.0,0.29]
[1727970520050,0.3608,60543.0,60542.0,0.372599]
[1727970521046,0.3668,60543.0,60542.0,0.373599]
[1727970521652,0.004,60543.0,60542.0,0.378599]
[1727970521956,0.001,60543.0,60542.0,0.378599]
[1727970522560,0.001,60543.0,60542.0,0.384599]
[1727970522743,0.10143117,60551.0,60542.0,0.302]
[1727970522744,0.01884317,60551.0,60542.0,0.302]
[1727970523056,0.443382,60555.0,60550.0,0.372588]
[1727970523249,0.08259,60549.0,60542.0,0.094598]
[1727970523441,0.001,60543.0,60542.0,0.022]
[1727970523644,0.001,60543.0,60542.0,0.104599]
[1727970523852,0.3618,60543.0,60542.0,0.022]
[1727970524052,0.001,60543.0,60542.0,0.022]
[1727970524254,0.082593,60547.0,60542.0,0.022]
[1727970524456,0.082593,60547.0,60542.0,0.104598]
[1727970524650,0.082593,60547.0,60542.0,0.103598]
[1727970524951,0.001,60543.0,60542.0,0.100598]
[1727970525951,0.3608,60555.0,60554.0,0.082583]
[1727970526144,0.00247768,60564.0,60554.0,0.29]
[1727970526350,0.00247768,60564.0,60550.0,0.3608]
[1727970526351,0.00247768,60564.0,60563.0,0.082571]
[1727970527864,0.00247768,60564.0,60563.0,0.083571]
[1727970527865,0.01547768,60564.0,60563.0,0.083571]
[1727970528058,0.09804668,60564.0,60563.0,0.001]
[1727970528563,0.01747768,60564.0,60563.0,0.002]
[1727970528855,0.10004668,60564.0,60563.0,0.002]
[1727970529058,0.09804668,60564.0,60563.0,0.001]
[1727970529250,0.10004668,60564.0,60563.0,0.002]
[1727970529758,0.09804668,60564.0,60563.0,0.002]
[1727970531360,0.082584,60553.0,60549.0,0.08259]
[1727970531662,0.082584,60553.0,60551.0,0.082587]
[1727970532257,0.082572,60562.0,60548.0,0.08259]
[1727970532455,0.082585,60553.0,60548.0,0.08259]
[1727970532760,0.082586,60552.0,60551.0,0.002]
[1727970533857,0.3608,60554.0,60551.0,0.002]
[1727970534358,0.3608,60554.0,60550.0,0.003]
[1727970534359,0.29,60552.0,60550.0,0.003]
[1727970534556,0.082602,60541.0,60529.0,0.082617]
[1727970534757,0.29,60539.0,60530.0,0.08509183]
[1727970535065,0.082605,60538.0,60530.0,0.00247783]
[1727970535264,0.082612,60533.0,60530.0,0.00247783]
[1727970535765,0.29,60539.0,60530.0,0.01447783]
[1727970535766,0.082613,60532.0,60530.0,0.01447783]
[1727970536153,0.082605,60538.0,60530.0,0.01447783]
[1727970536558,0.082614,60531.0,60530.0,0.01447783]
[1727970536968,0.082614,60531.0,60530.0,0.01847783]
[1727970537469,0.082614,60531.0,60530.0,0.01147783]
[1727970537763,0.082614,60531.0,60530.0,0.01047783]
[1727970537962,0.082614,60531.0,60530.0,0.00847783]
[1727970538560,0.082614,60531.0,60530.0,0.00747783]
[1727970539260,0.084614,60531.0,60530.0,0.00547783]
[1727970539860,0.084614,60531.0,60530.0,0.00347783]
[1727970540679,0.089614,60531.0,60530.0,0.00247783]
[1727970540963,0.1235367,60531.0,60530.0,0.00247783]
[1727970541165,0.55502395,60531.0,60508.0,0.00247892]
[1727970541472,0.55502395,60531.0,60512.0,0.08264]
[1727970541473,0.29,60522.0,60512.0,0.08264]
[1727970541770,0.08263,60520.0,60516.0,0.082634]
[1727970542267,0.08263,60520.0,60508.0,0.00247892]
[1727970542268,0.082635,60516.0,60508.0,0.08512392]
[1727970542472,0.082644,60509.0,60508.0,0.00247892]
[1727970542865,1.539244,60509.0,60503.0,0.00148]
[1727970543174,1.539244,60509.0,60484.0,0.3608]
[1727970543175,0.29,60504.0,60489.0,0.01884196]
[1727970543358,0.29,60504.0,60484.0,0.3608]
[1727970543359,0.29,60492.0,60488.0,0.082672]
[1727970543562,0.082664,60495.0,60484.0,0.37919829]
[1727970543761,0.29,60497.0,60488.0,0.082672]
[1727970543970,0.29,60497.0,60484.0,0.37919829]
[1727970543971,0.082666,60494.0,60484.0,0.37919829]
[1727970544268,0.082654,60502.0,60493.0,0.29]
[1727970544472,0.082654,60502.0,60496.0,0.082661]
[1727970544768,0.001,60504.0,60493.0,0.29]
[1727970545069,0.083651,60504.0,60499.0,0.082658]
[1727970545571,0.082661,60497.0,60489.0,0.012]
[1727970545772,0.082661,60497.0,60484.0,0.39319829]
[1727970546169,0.001,60494.0,60484.0,0.40519829]
[1727970546676,0.291,60497.0,60489.0,0.012]
[1727970546867,0.082664,60495.0,60490.0,0.082669]
[1727970547068,0.082667,60493.0,60489.0,0.012]
[1727970547276,0.08267,60490.0,60489.0,0.012]
[1727970547477,0.29,60491.0,60484.0,0.094678]
[1727970547478,0.082674,60488.0,60484.0,0.094678]
[1727970547671,0.3608,60493.0,60484.0,0.302]
[1727970547977,0.3608,60493.0,60492.0,0.082667]
[1727970548373,0.3608,60493.0,60490.0,0.014]
[1727970548568,0.3608,60493.0,60484.0,0.022]
[1727970549072,0.3618,60493.0,60492.0,0.082667]
[1727970549273,0.444466,60493.0,60489.0,0.012]
[1727970549775,0.3618,60493.0,60489.0,0.012]
[1727970549976,0.3618,60493.0,60492.0,0.082667]
[1727970550268,0.3618,60493.0,60492.0,0.013]
[1727970550469,0.444466,60493.0,60492.0,0.013]
[1727970550864,0.082668,60492.0,60488.0,0.082672]
[1727970551175,0.3618,60493.0,60489.0,0.008]
[1727970551176,0.08267,60490.0,60489.0,0.008]
[1727970551372,0.08267,60490.0,60489.0,0.012]
[1727970551969,0.3608,60493.0,60492.0,0.082667]
[1727970552163,0.443466,60493.0,60492.0,0.002]
[1727970552772,0.939386,60493.0,60492.0,0.002]
[1727970552966,0.443466,60493.0,60492.0,0.002]
[1727970553168,0.939386,60493.0,60492.0,0.002]
[1727970553670,0.939386,60493.0,60492.0,0.001]
[1727970553671,0.85672,60493.0,60492.0,0.001]
[1727970553867,0.939386,60493.0,60492.0,0.001]
[1727970554373,0.443466,60493.0,60492.0,0.003]
[1727970554673,0.3608,60493.0,60492.0,0.003]
[1727970554879,0.3608,60493.0,60492.0,0.085667]
[1727970555465,0.443466,60493.0,60492.0,0.003]
[1727970557066,0.3608,60493.0,60492.0,0.003]
[1727970557373,0.00084,60494.0,60493.0,0.082666]
[1727970557574,0.01881788,60501.0,60494.0,0.082664]
[1727970557779,0.082651,60505.0,60496.0,0.082662]
[1727970557780,0.372658,60499.0,60496.0,0.082662]
[1727970558171,0.082659,60498.0,60496.0,0.082662]
[1727970558369,0.29,60499.0,60492.0,0.003]
[1727970558567,0.02162795,60503.0,60498.0,0.082658]
[1727970558773,0.02162795,60503.0,60494.0,0.082664]
[1727970558774,0.08266,60498.0,60494.0,0.082664]
[1727970559282,0.372657,60500.0,60496.0,0.082561]
[1727970559472,0.372657,60500.0,60492.0,0.002]
[1727970559872,0.002,60499.0,60487.0,0.082673]
[1727970560073,0.001,60498.0,60487.0,0.082673]
[1727970560377,0.001,60498.0,60497.0,0.08266]
[1727970560770,0.002,60500.0,60497.0,0.08266]
[1727970560771,0.003,60500.0,60499.0,0.082658]
[1727970560970,0.001,60500.0,60499.0,0.082658]
[1727970563481,0.00248039,60503.0,60498.0,0.0314]
[1727970563677,0.00248039,60503.0,60502.0,0.082654]
[1727970564385,0.29,60524.0,60512.0,0.08264]
[1727970564585,0.443439,60513.0,60512.0,0.08264]
[1727970564777,0.082645,60509.0,60505.0,0.082648]
[1727970564978,0.082645,60509.0,60505.0,0.082649]
[1727970564979,0.082646,60508.0,60505.0,0.082649]
[1727970565195,0.082648,60507.0,60505.0,0.082649]
[1727970565485,0.082657,60500.0,60499.0,0.021]
[1727970565793,0.372657,60500.0,60499.0,0.021]
[1727970566089,0.372657,60500.0,60473.0,0.3608]
[1727970566090,2.10748,60500.0,60473.0,0.3608]
[1727970566286,2.10748,60500.0,60464.0,0.80186688]
[1727970566287,0.29,60480.0,60471.0,0.0309]
[1727970566483,0.3608,60482.0,60477.0,0.082688]
[1727970566681,0.3608,60482.0,60471.0,0.113596]
[1727970566682,0.29,60480.0,60471.0,0.113596]
[1727970566983,0.29,60480.0,60472.0,0.082695]
[1727970567283,0.3608,60482.0,60478.0,0.014]
[1727970567684,0.3608,60482.0,60473.0,0.29]
[1727970567985,0.3608,60482.0,60481.0,0.082683]
[1727970568989,0.01830038,60485.0,60481.0,0.082683]
[1727970569281,0.29,60488.0,60481.0,0.082683]
[1727970569482,0.001,60482.0,60478.0,0.014]
[1727970569878,0.002,60482.0,60481.0,0.01]
[1727970570090,0.3628,60482.0,60481.0,0.092683]
[1727970570487,0.3618,60482.0,60481.0,0.082683]
[1727970570781,0.3618,60482.0,60471.0,0.10110213]
[1727970570782,0.3628,60482.0,60478.0,0.01]
[1727970571389,0.3628,60482.0,60481.0,0.082683]
[1727970571578,0.082685,60480.0,60478.0,0.01]
[1727970572084,0.6528,60482.0,60469.0,0.01863041]
[1727970572085,0.65264,60482.0,60481.0,0.082683]
[1727970572285,0.67127307,60482.0,60481.0,0.011]
[1727970572483,0.75395407,60482.0,60481.0,0.014]
[1727970572696,0.78455407,60482.0,60481.0,0.003]
[1727970573392,0.78455407,60482.0,60481.0,0.086683]
[1727970573393,0.41287307,60482.0,60481.0,0.086683]
[1727970573694,0.3628,60482.0,60481.0,0.086683]
[1727970577891,0.445481,60482.0,60481.0,0.004]
[1727970579096,0.082692,60474.0,60471.0,0.082695]
[1727970579283,0.082692,60474.0,60465.0,0.3608]
[1727970579485,0.082694,60473.0,60470.0,0.082696]
[1727970579689,0.082694,60473.0,60471.0,0.082696]
[1727970579888,0.0827,60469.0,60466.0,0.082703]
[1727970580208,0.29,60472.0,60471.0,0.003]
[1727970580391,0.372695,60472.0,60471.0,0.003]
[1727970581187,0.3918487,60472.0,60471.0,0.0029]
[1727970581390,0.8879687,60472.0,60471.0,0.0029]
[1727970581889,0.3918487,60472.0,60471.0,0.0029]
[1727970582396,0.3918487,60472.0,60467.0,0.082701]
[1727970582397,0.0827,60468.0,60467.0,0.082701]
[1727970583087,0.29,60468.0,60466.0,0.009]
[1727970583287,0.082704,60466.0,60463.0,0.082706]
[1727970583486,0.082711,60461.0,60459.0,0.082712]
[1727970583687,0.29,60460.0,60459.0,0.082712]
[1727970583894,0.29,60460.0,60446.0,0.00248159]
[1727970583895,0.29,60460.0,60446.0,0.08521159]
[1727970584192,0.3608,60464.0,60446.0,0.00248159]
[1727970584193,0.29,60448.0,60446.0,0.00248159]
[1727970584387,0.073729,60447.0,60446.0,0.00248159]
[1727970584892,0.6508,60448.0,60446.0,0.00238159]
[1727970585096,0.37927371,60448.0,60447.0,0.082729]
[1727970585985,0.3608,60448.0,60446.0,0.00238159]
[1727970586191,0.3608,60448.0,60444.0,0.082733]
[1727970586192,0.6508,60448.0,60444.0,0.082733]
[1727970586398,0.08273,60446.0,60444.0,0.082733]
[1727970586900,0.6518,60448.0,60439.0,0.08274]
[1727970586901,0.082735,60443.0,60439.0,0.08274]
[1727970587203,0.082741,60439.0,60436.0,0.082743]
[1727970587493,0.372736,60442.0,60440.0,0.082738]
[1727970587798,0.372736,60442.0,60431.0,0.08523326]
[1727970587799,0.29,60442.0,60431.0,0.00248226]
[1727970588097,0.082742,60438.0,60436.0,0.082744]
[1727970588297,0.082738,60441.0,60437.0,0.082742]
[1727970588487,0.08274,60440.0,60437.0,0.082742]
[1727970588894,0.082741,60439.0,60431.0,0.02121645]
[1727970589297,0.082741,60439.0,60436.0,0.082744]
[1727970589691,0.082741,60439.0,60431.0,0.02121645]
[1727970589692,0.001,60441.0,60431.0,0.02121645]
[1727970589998,0.001,60441.0,60436.0,0.082743]
[1727970589999,0.083739,60440.0,60436.0,0.082743]
[1727970590199,0.082744,60437.0,60433.0,0.082748]
[1727970590401,0.29,60434.0,60433.0,0.082748]
[1727970591800,0.29,60434.0,60431.0,0.00248226]
[1727970591801,0.082748,60433.0,60431.0,0.00248226]
[1727970592101,0.08275,60432.0,60431.0,0.00248226]
[1727970592394,0.65264,60434.0,60432.0,0.08275]
[1727970592598,0.6518,60434.0,60431.0,0.00248226]
[1727970592797,0.082748,60433.0,60431.0,0.00248226]
[1727970592999,0.083748,60433.0,60431.0,0.00248226]
[1727970593302,0.002,60433.0,60431.0,0.00248226]
[1727970593600,0.001,60433.0,60432.0,0.08275]
[1727970595298,0.002,60433.0,60432.0,0.08275]